[Event "Championnat du monde jeunes U12F"]
[Date "2024.11.16"]
[White "Siskou, Evangelia"]
[Black "Potikha, Shelley"]
[WhiteElo "1884"]
[BlackElo "1561"]
[Round "2.29"]
[Result "1/2-1/2"]
[TimeControl "5400+30"]

1. e4 {[%clk 1:30:53]} 1... e6 {[%clk 1:30:52]} 2. d4 {[%clk 1:31:17]} 2... d5
{[%clk 1:31:16]} 3. Nc3 {[%clk 1:31:41]} 3... Bb4 {[%clk 1:31:26]} 4. Ne2 {[%clk
1:32:04]} 4... dxe4 {[%clk 1:31:24]} 5. a3 {[%clk 1:32:28]} 5... Bxc3+ {[%clk
1:31:27]} 6. Nxc3 {[%clk 1:32:47]} 6... Nc6 {[%clk 1:31:30]} 7. d5 {[%clk
1:33:07]} 7... exd5 {[%clk 1:31:44]} 8. Qxd5 {[%clk 1:33:30]} 8... Be6 {[%clk
1:32:04]} 9. Qxd8+ {[%clk 1:33:52]} 9... Rxd8 {[%clk 1:32:17]} 10. Bf4 {[%clk
1:34:15]} 10... f5 {[%clk 1:32:21]} 11. Bxc7 {[%clk 1:34:37]} 11... Rd7 {[%clk
1:32:45]} 12. Bf4 {[%clk 1:35:01]} 12... Kf7 {[%clk 1:32:58]} 13. Rd1 {[%clk
1:35:25]} 13... Nd4 {[%clk 1:18:14]} 14. Rd2 {[%clk 1:35:49]} 14... Ne7 {[%clk
1:14:45]} 15. Nb5 {[%clk 1:29:32]} 15... Nxb5 {[%clk 1:05:54]} 16. Bxb5 {[%clk
1:30:00]} 16... Rxd2 {[%clk 1:05:51]} 17. Kxd2 {[%clk 1:30:27]} 17... Rd8+
{[%clk 1:05:51]} 18. Kc1 {[%clk 1:30:50]} 18... Ng6 {[%clk 0:57:33]} 19. Be3
{[%clk 1:26:25]} 19... a6 {[%clk 0:54:05]} 20. Be2 {[%clk 1:24:19]} 20... Ne5
{[%clk 0:44:38]} 21. b3 {[%clk 1:15:51]} 21... Ng4 {[%clk 0:37:56]} 22. Bf4
{[%clk 1:12:11]} 22... Rc8 {[%clk 0:26:08]} 23. Bxg4 {[%clk 1:05:00]} 23... fxg4
{[%clk 0:26:01]} 24. Kb2 {[%clk 1:03:51]} 24... Bf5 {[%clk 0:23:31]} 25. Be3
{[%clk 1:01:35]} 25... Rd8 {[%clk 0:21:50]} 26. Re1 {[%clk 0:53:22]} 26... h5
{[%clk 0:18:31]} 27. Bg5 {[%clk 0:46:58]} 27... Rd7 {[%clk 0:18:11]} 28. c4
{[%clk 0:46:31]} 28... b5 {[%clk 0:15:08]} 29. cxb5 {[%clk 0:45:29]} 29... axb5
{[%clk 0:15:30]} 30. Rc1 {[%clk 0:45:50]} 30... Kg6 {[%clk 0:09:31]} 31. Be3
{[%clk 0:45:46]} 31... Rd5 {[%clk 0:07:22]} 32. Rc5 {[%clk 0:36:32]} 32... Rxc5
{[%clk 0:06:12]} 33. Bxc5 {[%clk 0:37:00]} 33... Kf7 {[%clk 0:05:45]} 34. Kc3
{[%clk 0:37:00]} 34... Bd7 {[%clk 0:04:57]} 35. Kb4 {[%clk 0:35:35]} 35... Ke6
{[%clk 0:04:25]} 36. Bd4 {[%clk 0:33:56]} 36... g6 {[%clk 0:03:32]} 37. Kc5
{[%clk 0:32:48]} 37... Be8 {[%clk 0:02:37]} 38. Bb2 {[%clk 0:28:37]} 38... Bd7
{[%clk 0:01:20]} 39. Bc1 {[%clk 0:22:25]} 39... Be8 {[%clk 0:01:13]} 40. Bg5
{[%clk 0:21:00]} 40... Bd7 {[%clk 0:00:57]} 41. g3 {[%clk 0:20:35]} 41... Be8
{[%clk 0:00:51]} 42. Kd4 {[%clk 0:18:37]} 42... Kf5 {[%clk 0:00:44]} 43. Bd8
{[%clk 0:18:47]} 43... Bd7 {[%clk 0:00:44]} 44. Kd5 {[%clk 0:16:29]} 44... Be6+
{[%clk 0:00:32]} 45. Kc6 {[%clk 0:16:58]} 45... Bxb3 {[%clk 0:00:33]} 46. Kxb5
{[%clk 0:17:26]} 46... Ke6 {[%clk 0:00:37]} 47. a4 {[%clk 0:17:24]} 47... Kd7
{[%clk 0:00:48]} 48. Bb6 {[%clk 0:17:51]} 48... Kc8 {[%clk 0:00:33]} 49. a5
{[%clk 0:18:19]} 49... Kb7 {[%clk 0:00:34]} 50. a6+ {[%clk 0:18:48]} 50... Ka8
{[%clk 0:00:55]} 51. Kc5 {[%clk 0:19:06]} 51... Be6 {[%clk 0:01:12]} 52. Kc6
{[%clk 0:16:57]} 52... Bf5 {[%clk 0:00:45]} 53. a7 {[%clk 0:16:23]} 53... Be6
{[%clk 0:00:33]} 54. Be3 {[%clk 0:16:38]} 54... Bf5 {[%clk 0:00:52]} 55. Kd6
{[%clk 0:17:07]} 55... Kb7 {[%clk 0:00:54]} 1/2-1/2

[Variant "Standard"]
[Site "Europe Echecs"]

[Event "Championnat du monde jeunes U12F"]
[Date "2024.11.16"]
[White "Dzafic, Merjem"]
[Black "Jacome Revelo, Daniela Alexandra"]
[WhiteElo "1568"]
[BlackElo "1764"]
[Round "2.30"]
[Result "0-1"]
[TimeControl "5400+30"]

1. e4 {[%clk 1:30:57]} 1... c5 {[%clk 1:30:28]} 2. Nf3 {[%clk 1:31:19]} 2... g6
{[%clk 1:29:59]} 3. d4 {[%clk 1:31:40]} 3... cxd4 {[%clk 1:30:00]} 4. Nxd4
{[%clk 1:31:37]} 4... Nf6 {[%clk 1:29:50]} 5. Nc3 {[%clk 1:31:22]} 5... d6
{[%clk 1:29:15]} 6. f3 {[%clk 1:30:25]} 6... a6 {[%clk 1:25:13]} 7. Bc4 {[%clk
1:27:34]} 7... Bg7 {[%clk 1:22:05]} 8. Be3 {[%clk 1:27:37]} 8... Nbd7 {[%clk
1:19:18]} 9. Qd2 {[%clk 1:25:29]} 9... h5 {[%clk 1:19:06]} 10. h4 {[%clk
1:21:09]} 10... b5 {[%clk 1:15:58]} 11. Bb3 {[%clk 1:21:01]} 11... Bb7 {[%clk
1:13:21]} 12. O-O-O {[%clk 1:15:48]} 12... Nc5 {[%clk 1:05:31]} 13. Bd5 {[%clk
1:08:53]} 13... Nxd5 {[%clk 0:59:58]} 14. Nxd5 {[%clk 1:08:45]} 14... e6 {[%clk
0:54:47]} 15. Nc3 {[%clk 1:04:29]} 15... Na4 {[%clk 0:44:59]} 16. Nce2 {[%clk
0:58:42]} 16... d5 {[%clk 0:37:20]} 17. exd5 {[%clk 0:45:17]} 17... Bxd5 {[%clk
0:34:57]} 18. Kb1 {[%clk 0:33:13]} 18... e5 {[%clk 0:31:15]} 19. Nb3 {[%clk
0:33:22]} 19... Bc4 {[%clk 0:29:27]} 20. Qxd8+ {[%clk 0:30:25]} 20... Rxd8
{[%clk 0:29:46]} 21. Rxd8+ {[%clk 0:30:47]} 21... Kxd8 {[%clk 0:30:11]} 22. Rd1+
{[%clk 0:29:43]} 22... Kc7 {[%clk 0:26:59]} 23. Ng3 {[%clk 0:26:42]} 23... f5
{[%clk 0:22:19]} 24. f4 {[%clk 0:25:44]} 24... Bxb3 {[%clk 0:20:47]} 25. cxb3
{[%clk 0:20:26]} 25... Nxb2 {[%clk 0:16:18]} 26. Rc1+ {[%clk 0:18:50]} 26... Kb7
{[%clk 0:14:41]} 27. fxe5 {[%clk 0:14:30]} 27... Bxe5 {[%clk 0:11:06]} 28. Ne2
{[%clk 0:11:22]} 28... Re8 {[%clk 0:09:33]} 29. Bd4 {[%clk 0:09:36]} 29... Bxd4
{[%clk 0:08:44]} 30. Nxd4 {[%clk 0:09:38]} 30... Nd3 {[%clk 0:09:10]} 31. Rc3
{[%clk 0:08:30]} 31... Nf4 {[%clk 0:09:11]} 32. Rg3 {[%clk 0:08:39]} 32... Re1+
{[%clk 0:07:19]} 33. Kb2 {[%clk 0:08:06]} 33... Rg1 {[%clk 0:06:51]} 34. Kc3
{[%clk 0:06:16]} 34... Rxg2 {[%clk 0:07:00]} 35. Rf3 {[%clk 0:06:07]} 35... Ne2+
{[%clk 0:07:08]} 36. Nxe2 {[%clk 0:06:16]} 36... Rxe2 {[%clk 0:07:34]} 37. Rg3
{[%clk 0:06:30]} 37... Re6 {[%clk 0:06:31]} 38. a4 {[%clk 0:06:38]} 38... f4
{[%clk 0:06:08]} 39. Rf3 {[%clk 0:06:48]} 39... Re3+ {[%clk 0:02:39]} 40. Rxe3
{[%clk 0:06:58]} 40... fxe3 {[%clk 0:03:07]} 41. Kd3 {[%clk 0:07:18]} 41... Kc6
{[%clk 0:03:23]} 42. Kxe3 {[%clk 0:07:09]} 42... Kd5 {[%clk 0:03:33]} 43. Kf4
{[%clk 0:07:09]} 43... Ke6 {[%clk 0:03:47]} 44. Kg5 {[%clk 0:07:26]} 44... Kf7
{[%clk 0:04:14]} 45. axb5 {[%clk 0:06:40]} 45... axb5 {[%clk 0:04:36]} 46. b4
{[%clk 0:07:04]} 46... Kg7 {[%clk 0:05:00]} 47. Kf4 {[%clk 0:06:47]} 47... Kf6
{[%clk 0:05:21]} 48. Kg3 {[%clk 0:05:24]} 48... Ke5 {[%clk 0:05:00]} 49. Kf3
{[%clk 0:05:33]} 49... Kf5 {[%clk 0:05:20]} 50. Kg3 {[%clk 0:05:44]} 50... Ke4
{[%clk 0:05:35]} 51. Kh3 {[%clk 0:06:01]} 51... Kf3 {[%clk 0:05:40]} 52. Kh2
{[%clk 0:06:19]} 52... Kg4 {[%clk 0:06:04]} 53. Kg2 {[%clk 0:06:40]} 53... Kxh4
{[%clk 0:06:30]} 54. Kh2 {[%clk 0:06:57]} 54... Kg4 {[%clk 0:06:56]} 55. Kg2
{[%clk 0:07:19]} 55... h4 {[%clk 0:07:20]} 56. Kh2 {[%clk 0:07:32]} 56... Kf3
{[%clk 0:07:32]} 57. Kh3 {[%clk 0:07:52]} 57... g5 {[%clk 0:07:58]} 58. Kh2
{[%clk 0:08:01]} 58... g4 {[%clk 0:08:20]} 59. Kg1 {[%clk 0:08:25]} 59... g3
{[%clk 0:08:41]} 60. Kf1 {[%clk 0:08:49]} 60... h3 {[%clk 0:08:29]} 61. Kg1
{[%clk 0:09:02]} 61... g2 {[%clk 0:08:20]} 62. Kh2 {[%clk 0:09:26]} 62... Kf2
{[%clk 0:08:44]} 63. Kxh3 {[%clk 0:09:44]} 63... g1=Q {[%clk 0:09:01]} 64. Kh4
{[%clk 0:10:11]} 64... Kf3 {[%clk 0:09:15]} 65. Kh5 {[%clk 0:10:36]} 65... Kf4
{[%clk 0:09:42]} 66. Kh6 {[%clk 0:11:02]} 66... Kf5 {[%clk 0:10:07]} 67. Kh7
{[%clk 0:11:26]} 67... Kf6 {[%clk 0:10:31]} 68. Kh6 {[%clk 0:11:49]} 68... Qg6#
{[%clk 0:10:58]} 0-1

[Variant "Standard"]
[Site "Europe Echecs"]

[Event "Championnat du monde jeunes U12F"]
[Date "2024.11.16"]
[White "Abylaykyzy, Bibisara"]
[Black "Laurincova, Timea"]
[WhiteElo "1694"]
[BlackElo "1549"]
[Round "2.31"]
[Result "1-0"]
[TimeControl "5400+30"]

1. e4 {[%clk 1:30:56]} 1... c5 {[%clk 1:30:56]} 2. Nf3 {[%clk 1:31:22]} 2... Nc6
{[%clk 1:31:10]} 3. d4 {[%clk 1:31:48]} 3... cxd4 {[%clk 1:31:31]} 4. Nxd4
{[%clk 1:32:15]} 4... g6 {[%clk 1:31:50]} 5. c4 {[%clk 1:32:39]} 5... Bg7 {[%clk
1:32:07]} 6. Be3 {[%clk 1:33:05]} 6... Nf6 {[%clk 1:32:07]} 7. Nc3 {[%clk
1:33:23]} 7... O-O {[%clk 1:32:21]} 8. Be2 {[%clk 1:33:48]} 8... d6 {[%clk
1:31:40]} 9. O-O {[%clk 1:31:41]} 9... Nxd4 {[%clk 1:30:57]} 10. Bxd4 {[%clk
1:32:04]} 10... Bd7 {[%clk 1:31:09]} 11. Qd2 {[%clk 1:31:58]} 11... Bc6 {[%clk
1:31:26]} 12. f3 {[%clk 1:31:33]} 12... Nd7 {[%clk 1:28:34]} 13. Be3 {[%clk
1:31:17]} 13... Nc5 {[%clk 1:28:11]} 14. Rac1 {[%clk 1:29:15]} 14... a6 {[%clk
1:24:39]} 15. Rfd1 {[%clk 1:29:12]} 15... Rc8 {[%clk 1:23:47]} 16. Qc2 {[%clk
1:26:21]} 16... Qe8 {[%clk 1:21:18]} 17. Qd2 {[%clk 1:24:53]} 17... Qd8 {[%clk
1:18:08]} 18. Qe1 {[%clk 1:23:31]} 18... Qe8 {[%clk 1:15:14]} 19. b3 {[%clk
1:22:51]} 19... f5 {[%clk 1:11:03]} 20. exf5 {[%clk 1:20:55]} 20... Rxf5 {[%clk
1:11:07]} 21. Ne4 {[%clk 1:12:15]} 21... Nxe4 {[%clk 1:08:12]} 22. fxe4 {[%clk
1:12:01]} 22... Bxe4 {[%clk 1:06:32]} 23. Bg4 {[%clk 1:12:28]} 23... Rf8 {[%clk
1:04:03]} 24. Be6+ {[%clk 1:10:15]} 24... Kh8 {[%clk 1:02:22]} 25. Bxc8 {[%clk
1:08:35]} 25... Qxc8 {[%clk 1:01:44]} 26. Qd2 {[%clk 1:08:21]} 26... Qc6 {[%clk
0:54:26]} 27. Rf1 {[%clk 1:08:37]} 27... Re8 {[%clk 0:52:08]} 28. Bd4 {[%clk
1:04:29]} 28... Kg8 {[%clk 0:48:03]} 29. Bxg7 {[%clk 1:03:56]} 29... Kxg7 {[%clk
0:48:25]} 30. Qf2 {[%clk 1:03:38]} 30... Bf5 {[%clk 0:47:31]} 31. Rce1 {[%clk
1:02:58]} 31... Qd7 {[%clk 0:45:46]} 32. h3 {[%clk 1:03:00]} 32... e5 {[%clk
0:45:25]} 33. Rd1 {[%clk 1:02:08]} 33... Qe7 {[%clk 0:44:13]} 34. Qd2 {[%clk
0:57:14]} 34... Rd8 {[%clk 0:43:12]} 35. g4 {[%clk 0:52:57]} 35... Be6 {[%clk
0:41:53]} 36. Qc3 {[%clk 0:51:37]} 36... h5 {[%clk 0:35:54]} 37. gxh5 {[%clk
0:46:02]} 37... Qg5+ {[%clk 0:36:03]} 38. Kh2 {[%clk 0:46:25]} 38... Qxh5 {[%clk
0:35:59]} 39. Rde1 {[%clk 0:44:11]} 39... Rh8 {[%clk 0:34:25]} 40. Rf3 {[%clk
0:40:06]} 40... Bg4 {[%clk 0:31:28]} 41. Rg3 {[%clk 0:39:57]} 41... Qf5 {[%clk
0:26:29]} 42. Kg2 {[%clk 0:36:03]} 42... Bh5 {[%clk 0:21:40]} 43. Qb2 {[%clk
0:28:43]} 43... Rf8 {[%clk 0:17:37]} 44. c5 {[%clk 0:26:39]} 44... Rc8 {[%clk
0:10:55]} 45. b4 {[%clk 0:25:58]} 45... a5 {[%clk 0:10:02]} 46. a3 {[%clk
0:25:07]} 46... b6 {[%clk 0:09:59]} 47. Qd2 {[%clk 0:14:36]} 47... dxc5 {[%clk
0:06:38]} 48. bxa5 {[%clk 0:11:45]} 48... bxa5 {[%clk 0:06:04]} 49. Qc3 {[%clk
0:11:27]} 49... Re8 {[%clk 0:03:53]} 50. Qxc5 {[%clk 0:10:34]} 50... Qf4 {[%clk
0:02:45]} 51. Qxa5 {[%clk 0:09:30]} 51... Re7 {[%clk 0:02:06]} 52. Qb4 {[%clk
0:09:08]} 52... Qf6 {[%clk 0:02:13]} 53. Qc5 {[%clk 0:08:05]} 53... Re6 {[%clk
0:02:15]} 54. a4 {[%clk 0:05:45]} 54... Kh6 {[%clk 0:02:35]} 55. Rf1 {[%clk
0:04:49]} 55... Qd8 {[%clk 0:02:20]} 56. Qf8+ {[%clk 0:05:14]} 56... Qxf8 {[%clk
0:02:24]} 57. Rxf8 {[%clk 0:05:39]} 57... Kg7 {[%clk 0:02:33]} 58. Ra8 {[%clk
0:05:58]} 58... e4 {[%clk 0:02:34]} 59. Re3 {[%clk 0:06:15]} 59... Kf6 {[%clk
0:01:49]} 60. a5 {[%clk 0:06:41]} 60... Ke5 {[%clk 0:01:36]} 61. a6 {[%clk
0:05:41]} 61... Kd4 {[%clk 0:01:32]} 62. Re1 {[%clk 0:06:08]} 62... g5 {[%clk
0:01:05]} 63. a7 {[%clk 0:06:33]} 63... Ra6 64. Rd8+ {[%clk 0:06:55]} 64... Ke5
{[%clk 0:00:45]} 65. a8=Q {[%clk 0:07:10]} 65... Rxa8 {[%clk 0:00:58]} 66. Rxa8
{[%clk 0:07:35]} 66... Kf4 {[%clk 0:01:03]} 67. Rf8+ {[%clk 0:07:58]} 67... Ke5
{[%clk 0:01:09]} 68. Rg8 {[%clk 0:07:46]} 68... Kf4 {[%clk 0:00:56]} 69. Rf1+
{[%clk 0:07:36]} 69... Bf3+ {[%clk 0:01:00]} 70. Rxf3+ {[%clk 0:08:01]} 70...
exf3+ {[%clk 0:01:04]} 71. Kf2 {[%clk 0:08:28]} 71... Ke4 {[%clk 0:00:38]} 72.
Rxg5 {[%clk 0:08:50]} 72... Kf4 {[%clk 0:00:49]} 73. Rg4+ {[%clk 0:09:11]} 1-0

[Variant "Standard"]
[Site "Europe Echecs"]

[Event "Championnat du monde jeunes U12F"]
[Date "2024.11.16"]
[White "Liang, Candice"]
[Black "Messali Anger, Ilyana"]
[WhiteElo "1551"]
[BlackElo "1687"]
[Round "2.32"]
[Result "1-0"]
[TimeControl "5400+30"]

1. d4 {[%clk 1:30:57]} 1... d5 {[%clk 1:30:47]} 2. c4 {[%clk 1:31:21]} 2... e6
{[%clk 1:31:06]} 3. Nc3 {[%clk 1:31:47]} 3... Nf6 {[%clk 1:31:21]} 4. cxd5
{[%clk 1:32:09]} 4... exd5 {[%clk 1:31:26]} 5. Bg5 {[%clk 1:32:32]} 5... Be7
{[%clk 1:31:22]} 6. e3 {[%clk 1:32:44]} 6... O-O {[%clk 1:31:01]} 7. Bd3 {[%clk
1:32:57]} 7... c6 {[%clk 1:30:36]} 8. Nge2 {[%clk 1:33:17]} 8... Nbd7 {[%clk
1:30:14]} 9. O-O {[%clk 1:33:26]} 9... Re8 {[%clk 1:29:14]} 10. f3 {[%clk
1:33:36]} 10... b5 {[%clk 1:27:34]} 11. a3 {[%clk 1:31:47]} 11... a5 {[%clk
1:12:12]} 12. Bh4 {[%clk 1:31:28]} 12... Nb6 {[%clk 1:10:50]} 13. Bf2 {[%clk
1:28:47]} 13... Nc4 {[%clk 1:02:38]} 14. Bxc4 {[%clk 1:26:26]} 14... bxc4 {[%clk
1:01:48]} 15. e4 {[%clk 1:24:49]} 15... Be6 {[%clk 1:00:28]} 16. Kh1 {[%clk
1:19:19]} 16... Rb8 {[%clk 0:54:12]} 17. Rb1 {[%clk 1:17:48]} 17... Nh5 {[%clk
0:47:26]} 18. e5 {[%clk 1:10:16]} 18... g6 {[%clk 0:43:19]} 19. Qd2 {[%clk
1:04:33]} 19... Bg5 {[%clk 0:37:16]} 20. f4 {[%clk 1:03:23]} 20... Be7 {[%clk
0:31:34]} 21. Rg1 {[%clk 0:59:03]} 21... Bf5 {[%clk 0:29:39]} 22. Rbe1 {[%clk
0:58:05]} 22... Ng7 {[%clk 0:26:45]} 23. g4 {[%clk 0:45:43]} 23... Bd3 {[%clk
0:25:12]} 24. Nc1 {[%clk 0:43:07]} 24... Qb6 {[%clk 0:23:18]} 25. Nxd3 {[%clk
0:41:40]} 25... cxd3 {[%clk 0:23:14]} 26. Rb1 {[%clk 0:40:35]} 26... Ne6 {[%clk
0:15:50]} 27. f5 {[%clk 0:37:50]} 27... Bg5 {[%clk 0:15:00]} 28. Qxd3 {[%clk
0:37:30]} 28... Nc7 {[%clk 0:12:36]} 29. h4 {[%clk 0:34:56]} 29... Bh6 {[%clk
0:12:40]} 30. Be3 {[%clk 0:32:36]} 30... Bf8 {[%clk 0:12:14]} 31. h5 {[%clk
0:24:19]} 31... g5 {[%clk 0:04:46]} 32. Bxg5 {[%clk 0:23:29]} 32... Bg7 {[%clk
0:04:18]} 33. Qd2 {[%clk 0:17:50]} 33... Qa6 {[%clk 0:01:27]} 34. Rgd1 {[%clk
0:13:04]} 34... Qa7 {[%clk 0:00:44]} 35. Bh6 {[%clk 0:12:12]} 35... Bxh6 {[%clk
0:01:04]} 36. Qxh6 {[%clk 0:12:34]} 36... Red8 {[%clk 0:01:20]} 37. Rd3 {[%clk
0:09:16]} 37... Qa6 {[%clk 0:01:05]} 38. Rd2 {[%clk 0:07:04]} 38... Kh8 {[%clk
0:01:02]} 39. Qf6+ {[%clk 0:07:00]} 39... Kg8 {[%clk 0:01:19]} 40. g5 {[%clk
0:05:40]} 40... c5 {[%clk 0:00:57]} 41. Qxa6 {[%clk 0:04:06]} 41... Nxa6 {[%clk
0:01:21]} 42. dxc5 {[%clk 0:03:58]} 42... Nxc5 {[%clk 0:00:58]} 43. Rxd5 {[%clk
0:04:15]} 43... Rxd5 {[%clk 0:01:17]} 44. Nxd5 {[%clk 0:04:42]} 44... Nd3 {[%clk
0:01:16]} 45. e6 {[%clk 0:03:32]} 45... fxe6 {[%clk 0:01:31]} 46. fxe6 {[%clk
0:03:54]} 46... Rxb2 {[%clk 0:01:35]} 47. Rxb2 {[%clk 0:04:06]} 47... Nxb2
{[%clk 0:01:58]} 48. e7 {[%clk 0:04:24]} 48... Kf7 {[%clk 0:02:06]} 49. g6+
{[%clk 0:04:48]} 49... hxg6 {[%clk 0:01:54]} 50. hxg6+ {[%clk 0:05:13]} 50...
Ke8 {[%clk 0:01:38]} 51. g7 {[%clk 0:05:38]} 51... a4 {[%clk 0:01:53]} 52. g8=Q+
{[%clk 0:05:59]} 52... Kd7 {[%clk 0:02:16]} 53. Qd8+ {[%clk 0:05:50]} 53... Ke6
{[%clk 0:02:37]} 1-0

[Variant "Standard"]
[Site "Europe Echecs"]

[Event "Championnat du monde jeunes U12F"]
[Date "2024.11.16"]
[White "Li, Yeeshuen"]
[Black "Radenkovic, Lena"]
[WhiteElo "1546"]
[BlackElo "1675"]
[Round "2.33"]
[Result "1-0"]
[TimeControl "5400+30"]

1. e4 {[%clk 1:30:58]} 1... e5 {[%clk 1:29:54]} 2. Nf3 {[%clk 1:31:17]} 2... Nc6
{[%clk 1:28:44]} 3. Bc4 {[%clk 1:31:33]} 3... Bc5 {[%clk 1:27:10]} 4. O-O {[%clk
1:30:07]} 4... Nf6 {[%clk 1:22:07]} 5. d4 {[%clk 1:29:29]} 5... Bxd4 {[%clk
1:17:19]} 6. Nxd4 {[%clk 1:29:45]} 6... Nxd4 {[%clk 1:17:09]} 7. Bg5 {[%clk
1:29:55]} 7... O-O {[%clk 1:14:34]} 8. f4 {[%clk 1:26:59]} 8... d6 {[%clk
1:08:51]} 9. f5 {[%clk 1:14:05]} 9... h6 {[%clk 1:03:57]} 10. Bh4 {[%clk
1:14:24]} 10... Bd7 {[%clk 1:00:49]} 11. c3 {[%clk 1:11:56]} 11... Nc6 {[%clk
0:58:35]} 12. Qd2 {[%clk 1:06:19]} 12... Nxe4 {[%clk 0:52:12]} 13. Qe1 {[%clk
1:04:56]} 13... Nf6 {[%clk 0:51:23]} 14. Nd2 {[%clk 1:03:16]} 14... Kh7 {[%clk
0:46:50]} 15. Ne4 {[%clk 1:01:06]} 15... Na5 {[%clk 0:44:16]} 16. Nxf6+ {[%clk
0:58:13]} 16... gxf6 {[%clk 0:43:57]} 17. Be2 {[%clk 0:57:13]} 17... Bc6 {[%clk
0:43:00]} 18. b4 {[%clk 0:56:50]} 18... Rg8 {[%clk 0:42:15]} 19. Rf2 {[%clk
0:55:33]} 19... e4 {[%clk 0:39:11]} 20. Bg3 {[%clk 0:53:00]} 20... e3 {[%clk
0:35:53]} 21. Rf1 {[%clk 0:51:48]} 21... Bxg2 {[%clk 0:33:48]} 22. Kxg2 {[%clk
0:52:06]} 22... Nc6 {[%clk 0:34:05]} 23. Kh1 {[%clk 0:46:39]} 23... Qe7 {[%clk
0:32:09]} 24. Bf3 {[%clk 0:44:22]} 24... Rab8 25. Bf4 {[%clk 0:42:57]} 25...
Rbe8 {[%clk 0:28:49]} 26. Qe2 Qd7 {[%clk 0:25:49]} 27. Bxe3 {[%clk 0:32:17]}
27... d5 {[%clk 0:24:08]} 28. Qd3 {[%clk 0:29:13]} 28... Rd8 {[%clk 0:21:51]}
29. Rad1 {[%clk 0:24:46]} 29... Ne7 {[%clk 0:20:58]} 30. Bh5 {[%clk 0:23:28]}
30... Rg7 {[%clk 0:19:31]} 31. Bd4 {[%clk 0:20:13]} 31... Qd6 {[%clk 0:18:48]}
32. Bc5 {[%clk 0:19:47]} 32... Qd7 {[%clk 0:18:24]} 33. Bxe7 {[%clk 0:19:59]}
33... Qxe7 {[%clk 0:18:32]} 34. Rde1 {[%clk 0:18:39]} 34... Qd6 {[%clk 0:17:56]}
35. Bf3 {[%clk 0:17:21]} 35... c6 {[%clk 0:16:28]} 36. Rg1 {[%clk 0:17:10]}
36... Rg5 {[%clk 0:14:09]} 37. Rxg5 {[%clk 0:13:57]} 37... hxg5 {[%clk 0:14:13]}
38. Qe3 {[%clk 0:13:44]} 38... Kg7 {[%clk 0:12:20]} 39. Qe7 {[%clk 0:13:06]}
39... Qb8 {[%clk 0:11:09]} 40. Re6 {[%clk 0:12:10]} 40... Rh8 {[%clk 0:10:01]}
41. Qxf6+ {[%clk 0:11:00]} 41... Kg8 {[%clk 0:10:00]} 42. Qxg5+ {[%clk 0:11:04]}
42... Kf8 {[%clk 0:10:18]} 43. Qe7+ {[%clk 0:11:01]} 43... Kg7 {[%clk 0:10:17]}
44. Rg6+ {[%clk 0:11:14]} 44... Kh7 {[%clk 0:10:29]} 45. Qxf7# 1-0

[Variant "Standard"]
[Site "Europe Echecs"]

[Event "Championnat du monde jeunes U12F"]
[Date "2024.11.16"]
[White "Smirnova, Viktoria A"]
[Black "Hiznicenco, Valeria"]
[WhiteElo "1658"]
[BlackElo "1513"]
[Round "2.34"]
[Result "1-0"]
[TimeControl "5400+30"]

1. d4 {[%clk 1:30:58]} 1... Nf6 {[%clk 1:30:35]} 2. c4 {[%clk 1:31:23]} 2... g6
{[%clk 1:30:42]} 3. Nf3 {[%clk 1:31:49]} 3... Bg7 {[%clk 1:30:38]} 4. g3 {[%clk
1:32:11]} 4... d5 {[%clk 1:29:36]} 5. Bg2 {[%clk 1:32:07]} 5... O-O {[%clk
1:28:32]} 6. Nbd2 {[%clk 1:32:11]} 6... c6 {[%clk 1:19:50]} 7. O-O {[%clk
1:31:21]} 7... Nbd7 {[%clk 1:15:50]} 8. Qc2 {[%clk 1:30:31]} 8... Re8 {[%clk
1:14:21]} 9. e4 {[%clk 1:27:02]} 9... dxe4 {[%clk 1:09:50]} 10. Nxe4 {[%clk
1:27:18]} 10... Nxe4 {[%clk 1:09:54]} 11. Qxe4 {[%clk 1:27:41]} 11... e5 {[%clk
1:06:17]} 12. Re1 {[%clk 0:48:37]} 12... f5 {[%clk 0:55:19]} 13. Qh4 exd4 {[%clk
0:40:06]} 14. Bg5 {[%clk 0:45:07]} 14... Rxe1+ {[%clk 0:38:49]} 15. Rxe1 {[%clk
0:45:24]} 15... Nf6 {[%clk 0:24:36]} 16. Qxd4 {[%clk 0:43:28]} 16... Qxd4 {[%clk
0:23:05]} 17. Nxd4 {[%clk 0:43:47]} 17... h6 {[%clk 0:21:19]} 18. Bf4 {[%clk
0:42:09]} 18... Nh5 19. Be5 {[%clk 0:41:34]} 19... Nf6 {[%clk 0:18:34]} 20. Nxc6
{[%clk 0:36:09]} 20... Bd7 {[%clk 0:12:38]} 21. Nb8 {[%clk 0:32:43]} 21... Bc6
{[%clk 0:08:18]} 22. Nxc6 {[%clk 0:32:29]} 22... bxc6 {[%clk 0:08:32]} 23. Bxc6
{[%clk 0:32:56]} 23... Rc8 {[%clk 0:07:47]} 24. Bxf6 {[%clk 0:32:04]} 24... Rxc6
{[%clk 0:06:05]} 25. Bxg7 {[%clk 0:32:23]} 25... Kxg7 {[%clk 0:06:03]} 26. b3
{[%clk 0:32:26]} 26... a5 {[%clk 0:05:31]} 27. Re3 {[%clk 0:32:12]} 27... Kf6
{[%clk 0:04:49]} 28. Kf1 {[%clk 0:32:30]} 28... Re6 {[%clk 0:04:03]} 29. Rxe6+
{[%clk 0:32:55]} 29... Kxe6 {[%clk 0:04:26]} 30. Ke2 {[%clk 0:33:12]} 30... Kd6
{[%clk 0:04:34]} 31. Kd3 {[%clk 0:33:36]} 31... Kc5 {[%clk 0:04:45]} 32. a3
{[%clk 0:34:00]} 32... h5 {[%clk 0:04:05]} 33. b4+ {[%clk 0:34:22]} 33... axb4
{[%clk 0:04:16]} 34. axb4+ {[%clk 0:34:48]} 1-0

[Variant "Standard"]
[Site "Europe Echecs"]